[Event "Early-Titled-Tuesday-Blitz-May-07-2024"]
[Site "Chess.com"]
[Date "2024.05.07"]
[Round "8"]
[White "slorovel"]
[Black "average_trans"]
[Result "1-0"]
[WhiteElo "2524"]
[BlackElo "2347"]
[TimeControl "180+1"]
[EndTime "9:32:31 PDT"]
[Termination "slorovel won by checkmate"]

1. e4 {[%clk 0:02:52.3]} 1... d5 {[%clk 0:02:58.8]} 2. exd5 {[%clk 0:02:51.9]}
2... Qxd5 {[%clk 0:02:59.7]} 3. Nc3 {[%clk 0:02:51.9]} 3... Qa5 {[%clk
0:03:00.2]} 4. Nf3 {[%clk 0:02:51.3]} 4... Nf6 {[%clk 0:03:00.6]} 5. d4 {[%clk
0:02:51.1]} 5... Bf5 {[%clk 0:03:01]} 6. Bd3 {[%clk 0:02:50.9]} 6... Bxd3 {[%clk
0:03:00.2]} 7. Qxd3 {[%clk 0:02:51.8]} 7... e6 {[%clk 0:02:59.7]} 8. O-O {[%clk
0:02:51.8]} 8... c6 {[%clk 0:03:00]} 9. Ne4 {[%clk 0:02:48.3]} 9... Nxe4 {[%clk
0:02:59.4]} 10. Qxe4 {[%clk 0:02:49.2]} 10... Bd6 {[%clk 0:02:59.7]} 11. c4
{[%clk 0:02:48.9]} 11... Nd7 {[%clk 0:02:54.1]} 12. Rd1 {[%clk 0:02:40.8]} 12...
O-O-O {[%clk 0:02:40.3]} 13. Bd2 {[%clk 0:02:29.8]} 13... Qh5 {[%clk 0:02:37.6]}
14. b4 {[%clk 0:02:24.3]} 14... Rhg8 {[%clk 0:02:13.3]} 15. b5 {[%clk
0:02:23.3]} 15... cxb5 {[%clk 0:02:13.6]} 16. cxb5 {[%clk 0:02:22.9]} 16... g5
{[%clk 0:02:05.2]} 17. Ba5 {[%clk 0:02:09.7]} 17... g4 {[%clk 0:01:58.8]} 18.
Ne5 {[%clk 0:01:59.8]} 18... f6 {[%clk 0:01:18.5]} 19. Rac1+ {[%clk 0:01:51.9]}
19... Kb8 {[%clk 0:01:13.2]} 20. Bxd8 {[%clk 0:01:22.5]} 20... fxe5 {[%clk
0:01:12]} 21. dxe5 {[%clk 0:01:20.1]} 21... Bxe5 {[%clk 0:01:04.4]} 22. Rxd7
{[%clk 0:01:17.2]} 22... Qxh2+ {[%clk 0:00:36.3]} 23. Kf1 {[%clk 0:01:16]} 23...
Qh1+ {[%clk 0:00:36.5]} 24. Ke2 {[%clk 0:01:15.7]} 24... Qxc1 {[%clk 0:00:37.1]}
25. Qxb7# {[%clk 0:01:15.5]} 1-0

[Event "Early-Titled-Tuesday-Blitz-May-07-2024"]
[Site "Chess.com"]
[Date "2024.05.07"]
[Round "8"]
[White "Chernov_Alexander_A"]
[Black "maurovargas01"]
[Result "1-0"]
[WhiteElo "2253"]
[BlackElo "1965"]
[TimeControl "180+1"]
[EndTime "9:32:41 PDT"]
[Termination "Chernov_Alexander_A won by resignation"]

1. d4 {[%clk 0:03:00.9]} 1... Nf6 {[%clk 0:02:59]} 2. Nf3 {[%clk 0:03:00.1]}
2... c6 {[%clk 0:02:50.2]} 3. Bg5 {[%clk 0:02:55.8]} 3... d6 {[%clk 0:02:46.5]}
4. Nc3 {[%clk 0:02:52.7]} 4... Bg4 {[%clk 0:02:46.2]} 5. e4 {[%clk 0:02:51.6]}
5... h6 {[%clk 0:02:41.5]} 6. Be3 {[%clk 0:02:48.4]} 6... Nbd7 {[%clk
0:02:34.6]} 7. Be2 {[%clk 0:02:47.7]} 7... g5 {[%clk 0:02:23.9]} 8. Nd2 {[%clk
0:02:42.2]} 8... Bxe2 {[%clk 0:02:20.1]} 9. Qxe2 {[%clk 0:02:39.5]} 9... Bg7
{[%clk 0:02:19.6]} 10. Nf1 {[%clk 0:02:29.6]} 10... b5 {[%clk 0:02:16.8]} 11. f3
{[%clk 0:02:28.5]} 11... a6 {[%clk 0:02:14.1]} 12. g4 {[%clk 0:02:25.1]} 12...
e6 {[%clk 0:02:12.8]} 13. Ng3 {[%clk 0:02:24.7]} 13... d5 {[%clk 0:02:09.7]} 14.
e5 {[%clk 0:02:23]} 14... Ng8 {[%clk 0:02:06.1]} 15. f4 {[%clk 0:02:18.3]} 15...
gxf4 {[%clk 0:02:02.5]} 16. Bxf4 {[%clk 0:02:18.2]} 16... Ne7 {[%clk 0:02:02.4]}
17. Nh5 {[%clk 0:02:11.4]} 17... Rg8 {[%clk 0:01:54.6]} 18. O-O-O {[%clk
0:02:07.8]} 18... Bf8 {[%clk 0:01:53]} 19. Qf3 {[%clk 0:01:54.6]} 19... Ng6
{[%clk 0:01:52.3]} 20. Be3 {[%clk 0:01:48.8]} 20... Qa5 {[%clk 0:01:45.4]} 21.
Rhf1 {[%clk 0:01:44.7]} 21... O-O-O {[%clk 0:01:14.9]} 22. Kb1 {[%clk
0:01:40.3]} 22... b4 {[%clk 0:00:54.6]} 23. Ne2 {[%clk 0:01:39.6]} 23... Nb6
{[%clk 0:00:52.5]} 24. b3 {[%clk 0:01:37.6]} 24... Rd7 {[%clk 0:00:45.1]} 25.
Nf6 {[%clk 0:01:35.4]} 25... Na4 {[%clk 0:00:34.6]} 26. bxa4 {[%clk 0:01:31.5]}
26... Qxa4 {[%clk 0:00:34.2]} 27. Nxd7 {[%clk 0:01:29.2]} 27... b3 {[%clk
0:00:28.3]} 28. cxb3 {[%clk 0:01:27.2]} 1-0

[Event "Early-Titled-Tuesday-Blitz-May-07-2024"]
[Site "Chess.com"]
[Date "2024.05.07"]
[Round "8"]
[White "mapleaff"]
[Black "RantomOpening"]
[Result "1-0"]
[WhiteElo "2285"]
[BlackElo "2495"]
[TimeControl "180+1"]
[EndTime "9:32:54 PDT"]
[Termination "mapleaff won by checkmate"]

1. e4 {[%clk 0:03:00.9]} 1... c5 {[%clk 0:02:59.5]} 2. Nf3 {[%clk 0:03:00.2]}
2... e6 {[%clk 0:03:00]} 3. g3 {[%clk 0:02:59.7]} 3... Nc6 {[%clk 0:03:00.1]} 4.
Bg2 {[%clk 0:02:59.7]} 4... Nf6 {[%clk 0:03:00.4]} 5. Qe2 {[%clk 0:03:00.4]}
5... Be7 {[%clk 0:03:00.1]} 6. O-O {[%clk 0:03:00.8]} 6... d5 {[%clk 0:03:00.6]}
7. exd5 {[%clk 0:02:58.2]} 7... exd5 {[%clk 0:03:00.4]} 8. d4 {[%clk 0:02:51.4]}
8... Bg4 {[%clk 0:02:59.7]} 9. dxc5 {[%clk 0:02:36.2]} 9... O-O {[%clk
0:02:59.1]} 10. h3 {[%clk 0:02:31.7]} 10... Nd4 {[%clk 0:02:56.9]} 11. Qd3
{[%clk 0:02:24.7]} 11... Nxf3+ {[%clk 0:02:56.5]} 12. Bxf3 {[%clk 0:02:19.2]}
12... Bxh3 {[%clk 0:02:56.7]} 13. Rd1 {[%clk 0:02:16.5]} 13... Bxc5 {[%clk
0:02:56.4]} 14. Bg5 {[%clk 0:02:14.1]} 14... Qb6 {[%clk 0:01:36.5]} 15. Bxf6
{[%clk 0:02:05.9]} 15... Qxf6 {[%clk 0:01:28.8]} 16. Nc3 {[%clk 0:02:00.4]}
16... Rad8 {[%clk 0:01:16.9]} 17. b4 {[%clk 0:01:34.9]} 17... Bb6 {[%clk
0:01:12.3]} 18. Nxd5 {[%clk 0:01:32.2]} 18... Qg5 {[%clk 0:01:01.4]} 19. Bg2
{[%clk 0:01:06.2]} 19... Bxg2 {[%clk 0:00:52.4]} 20. Kxg2 {[%clk 0:01:06.7]}
20... h5 {[%clk 0:00:52.3]} 21. c4 {[%clk 0:00:57.7]} 21... h4 {[%clk
0:00:48.1]} 22. Rh1 {[%clk 0:00:56.8]} 22... Qg6 {[%clk 0:00:33.6]} 23. Ne7+
{[%clk 0:00:55.1]} 23... Kh7 {[%clk 0:00:30.9]} 24. Rxh4# {[%clk 0:00:54.2]} 1-0

[Event "Early-Titled-Tuesday-Blitz-May-07-2024"]
[Site "Chess.com"]
[Date "2024.05.07"]
[Round "8"]
[White "mortngabriel"]
[Black "Senn71"]
[Result "1-0"]
[WhiteElo "2503"]
[BlackElo "2243"]
[TimeControl "180+1"]
[EndTime "9:32:56 PDT"]
[Termination "mortngabriel won by resignation"]

1. e4 {[%clk 0:03:00.9]} 1... c5 {[%clk 0:02:59.5]} 2. Nf3 {[%clk 0:03:00.8]}
2... e6 {[%clk 0:02:59.9]} 3. d4 {[%clk 0:03:01.3]} 3... cxd4 {[%clk 0:03:00.4]}
4. Nxd4 {[%clk 0:03:02.2]} 4... Nc6 {[%clk 0:03:00.3]} 5. Nc3 {[%clk 0:03:02.7]}
5... Qc7 {[%clk 0:03:00.5]} 6. Nxc6 {[%clk 0:03:02.5]} 6... bxc6 {[%clk
0:03:00.1]} 7. Bd3 {[%clk 0:03:03]} 7... d5 {[%clk 0:03:00.5]} 8. Qe2 {[%clk
0:03:03]} 8... Nf6 {[%clk 0:03:00.7]} 9. O-O {[%clk 0:03:02.9]} 9... Be7 {[%clk
0:02:59.3]} 10. b3 {[%clk 0:03:03.1]} 10... O-O {[%clk 0:02:57.7]} 11. Bb2
{[%clk 0:03:03.3]} 11... a5 {[%clk 0:02:57]} 12. a4 {[%clk 0:03:00.9]} 12... Nd7
{[%clk 0:02:50.5]} 13. exd5 {[%clk 0:02:55.1]} 13... cxd5 {[%clk 0:02:49.4]} 14.
Nxd5 {[%clk 0:02:55.1]} 14... exd5 {[%clk 0:02:37.8]} 15. Qxe7 {[%clk 0:02:56]}
15... Bb7 {[%clk 0:02:14.7]} 16. Qh4 {[%clk 0:02:37.5]} 16... f5 {[%clk
0:01:37.7]} 17. Qg5 {[%clk 0:02:16.7]} 17... g6 {[%clk 0:01:32.9]} 18. Rfe1
{[%clk 0:02:06.3]} 18... Rf7 {[%clk 0:01:27.8]} 19. Re7 {[%clk 0:01:42.2]} 19...
Raf8 {[%clk 0:01:27]} 20. Rae1 {[%clk 0:01:41]} 20... Qd6 {[%clk 0:01:18]} 21.
Bxf5 {[%clk 0:01:13.2]} 21... Bc8 {[%clk 0:00:31.1]} 22. Be6 {[%clk 0:00:57.8]}
1-0

[Event "Early-Titled-Tuesday-Blitz-May-07-2024"]
[Site "Chess.com"]
[Date "2024.05.07"]
[Round "8"]
[White "talaicito"]
[Black "zajka-molotok"]
[Result "0-1"]
[WhiteElo "2380"]
[BlackElo "2532"]
[TimeControl "180+1"]
[EndTime "9:32:57 PDT"]
[Termination "zajka-molotok won on time"]

1. d4 {[%clk 0:03:00.9]} 1... g6 {[%clk 0:03:00.9]} 2. Nc3 {[%clk 0:02:59.4]}
2... Bg7 {[%clk 0:03:01]} 3. e4 {[%clk 0:03:00]} 3... a6 {[%clk 0:03:00.9]} 4.
h4 {[%clk 0:02:59]} 4... b5 {[%clk 0:03:01]} 5. h5 {[%clk 0:02:56.9]} 5... gxh5
{[%clk 0:03:01.9]} 6. Rxh5 {[%clk 0:02:56.2]} 6... b4 {[%clk 0:03:02.1]} 7. Nd5
{[%clk 0:02:53.6]} 7... e6 {[%clk 0:03:02.4]} 8. Bg5 {[%clk 0:02:50.8]} 8... f6
{[%clk 0:03:00.5]} 9. Rh1 {[%clk 0:02:19.8]} 9... exd5 {[%clk 0:02:50.4]} 10.
Qh5+ {[%clk 0:02:19.5]} 10... Kf8 {[%clk 0:02:50.4]} 11. Bf4 {[%clk 0:01:42]}
11... Qe8 {[%clk 0:02:47.7]} 12. Qxd5 {[%clk 0:01:41.8]} 12... Nc6 {[%clk
0:02:39.7]} 13. Bxc7 {[%clk 0:01:32.7]} 13... Nge7 {[%clk 0:02:39.7]} 14. Bd6
{[%clk 0:01:32.5]} 14... Qf7 {[%clk 0:02:39]} 15. Qc5 {[%clk 0:01:24.3]} 15...
Bb7 {[%clk 0:02:10.8]} 16. d5 {[%clk 0:01:09.4]} 16... Ne5 {[%clk 0:01:59.4]}
17. Qc7 {[%clk 0:01:01.6]} 17... Bxd5 {[%clk 0:01:47.6]} 18. exd5 {[%clk
0:00:52.8]} 18... Qxd5 {[%clk 0:01:48.5]} 19. Rd1 {[%clk 0:00:17]} 19... Qe4+
{[%clk 0:01:48.2]} 20. Ne2 {[%clk 0:00:16]} 20... Kf7 {[%clk 0:01:42.5]} 21. Rd4
{[%clk 0:00:11.8]} 21... Qc6 {[%clk 0:01:38.3]} 22. f4 {[%clk 0:00:09]} 22...
Qxc7 {[%clk 0:01:36.3]} 23. Bxc7 {[%clk 0:00:08.6]} 23... Ng4 {[%clk 0:01:37]}
24. Rxd7 {[%clk 0:00:07.5]} 24... Ke6 {[%clk 0:01:36.8]} 25. Rd3 {[%clk
0:00:05.8]} 25... Rac8 {[%clk 0:01:35.4]} 26. Ba5 {[%clk 0:00:03.9]} 26... Nc6
{[%clk 0:01:35.2]} 27. Bb6 {[%clk 0:00:02.9]} 27... f5 {[%clk 0:01:34.1]} 28. b3
{[%clk 0:00:01.2]} 28... Rhe8 {[%clk 0:01:31.3]} 0-1

[Event "Early-Titled-Tuesday-Blitz-May-07-2024"]
[Site "Chess.com"]
[Date "2024.05.07"]
[Round "8"]
[White "pirulillo"]
[Black "masnyszachistaaa"]
[Result "1-0"]
[WhiteElo "2417"]
[BlackElo "2586"]
[TimeControl "180+1"]
[EndTime "9:32:58 PDT"]
[Termination "pirulillo won by resignation"]

1. e4 {[%clk 0:03:00.9]} 1... e6 {[%clk 0:02:26.3]} 2. d3 {[%clk 0:02:59.7]}
2... d5 {[%clk 0:02:25.9]} 3. Nd2 {[%clk 0:03:00.2]} 3... c5 {[%clk 0:02:16.5]}
4. Ngf3 {[%clk 0:02:59.4]} 4... Nc6 {[%clk 0:02:16.1]} 5. g3 {[%clk 0:02:59.5]}
5... Bd6 {[%clk 0:01:57.1]} 6. Bg2 {[%clk 0:02:58.7]} 6... Nge7 {[%clk
0:01:56.7]} 7. O-O {[%clk 0:02:59.6]} 7... O-O {[%clk 0:01:53.8]} 8. Re1 {[%clk
0:03:00.2]} 8... f6 {[%clk 0:01:53.2]} 9. c3 {[%clk 0:02:59.9]} 9... Bc7 {[%clk
0:01:24.2]} 10. Qc2 {[%clk 0:02:53.2]} 10... Ng6 {[%clk 0:00:40.1]} 11. exd5
{[%clk 0:02:48.7]} 11... exd5 {[%clk 0:00:39.5]} 12. d4 {[%clk 0:02:47.9]} 12...
cxd4 {[%clk 0:00:20.1]} 13. cxd4 {[%clk 0:02:45.6]} 13... Bd7 {[%clk 0:00:14.2]}
14. a3 {[%clk 0:02:41.4]} 14... Be8 {[%clk 0:00:13.8]} 15. Nb3 {[%clk
0:02:36.7]} 15... Bf7 {[%clk 0:00:12.9]} 16. Nc5 {[%clk 0:02:34.8]} 16... Rb8
{[%clk 0:00:10.3]} 17. Nxb7 {[%clk 0:02:32.7]} 17... Rxb7 {[%clk 0:00:07.5]} 18.
Qxc6 {[%clk 0:02:32.7]} 18... Rb6 {[%clk 0:00:07.8]} 19. Qc2 {[%clk 0:02:29.4]}
19... Bd6 {[%clk 0:00:07.1]} 20. Bd2 {[%clk 0:02:28.2]} 20... Qc8 {[%clk
0:00:04.6]} 21. Bc3 {[%clk 0:02:24.3]} 21... Rb7 {[%clk 0:00:02.6]} 22. Nd2
{[%clk 0:02:19.4]} 22... Ne7 {[%clk 0:00:02.2]} 23. Nf1 {[%clk 0:02:18]} 23...
Rd8 {[%clk 0:00:02.3]} 24. Ne3 {[%clk 0:02:17.5]} 24... Bb8 {[%clk 0:00:02.1]}
25. Rac1 {[%clk 0:02:10.1]} 25... Nc6 {[%clk 0:00:02.3]} 26. Ba5 {[%clk
0:01:46.5]} 26... Re8 {[%clk 0:00:01.2]} 27. Qxc6 {[%clk 0:01:42.8]} 27... Qxc6
{[%clk 0:00:01.8]} 28. Rxc6 {[%clk 0:01:41.7]} 28... Rxb2 {[%clk 0:00:02.7]} 29.
Bc7 {[%clk 0:01:34.8]} 29... Rc8 {[%clk 0:00:01.9]} 30. Rec1 {[%clk 0:01:35.1]}
30... Bxc7 {[%clk 0:00:01.6]} 31. Rxc7 {[%clk 0:01:35.4]} 31... Rcb8 {[%clk
0:00:01.6]} 32. Rc8+ {[%clk 0:01:35.3]} 1-0

[Event "Early-Titled-Tuesday-Blitz-May-07-2024"]
[Site "Chess.com"]
[Date "2024.05.07"]
[Round "8"]
[White "Navyblue1"]
[Black "dianamirza"]
[Result "1-0"]
[WhiteElo "2234"]
[BlackElo "1926"]
[TimeControl "180+1"]
[EndTime "9:33:04 PDT"]
[Termination "Navyblue1 won by resignation"]

1. d4 {[%clk 0:03:00.9]} 1... Nf6 {[%clk 0:02:53.9]} 2. c4 {[%clk 0:03:01.1]}
2... c5 {[%clk 0:02:54.7]} 3. d5 {[%clk 0:02:58.7]} 3... b5 {[%clk 0:02:55.3]}
4. cxb5 {[%clk 0:02:58]} 4... a6 {[%clk 0:02:55.9]} 5. e3 {[%clk 0:02:58.2]}
5... g6 {[%clk 0:02:52.5]} 6. Nc3 {[%clk 0:02:56.6]} 6... Bg7 {[%clk 0:02:51.7]}
7. a4 {[%clk 0:02:53.2]} 7... axb5 {[%clk 0:02:50.8]} 8. Bxb5 {[%clk 0:02:52.1]}
8... O-O {[%clk 0:02:49.9]} 9. Nge2 {[%clk 0:02:51.4]} 9... d6 {[%clk
0:02:49.3]} 10. O-O {[%clk 0:02:51.7]} 10... Bb7 {[%clk 0:02:47.2]} 11. Ra3
{[%clk 0:02:41.5]} 11... Nbd7 {[%clk 0:02:42.5]} 12. e4 {[%clk 0:02:39.7]} 12...
Nb6 {[%clk 0:02:39.7]} 13. a5 {[%clk 0:02:23.3]} 13... Nbd7 {[%clk 0:02:35.3]}
14. a6 {[%clk 0:02:20.8]} 14... Bc8 {[%clk 0:02:30.8]} 15. Be3 {[%clk
0:01:44.1]} 15... Ng4 {[%clk 0:02:19.3]} 16. Bd2 {[%clk 0:01:42.8]} 16... Nb6
{[%clk 0:02:11.6]} 17. h3 {[%clk 0:01:36.8]} 17... Ne5 {[%clk 0:02:12.1]} 18.
Qb3 {[%clk 0:01:34.4]} 18... c4 {[%clk 0:02:06.7]} 19. Qc2 {[%clk 0:01:32.9]}
19... Bd7 {[%clk 0:01:59.7]} 20. Be3 {[%clk 0:01:24.3]} 20... Bxb5 {[%clk
0:01:52.6]} 21. Nxb5 {[%clk 0:01:25.2]} 21... Nd3 {[%clk 0:01:42.8]} 22. Nec3
{[%clk 0:01:14.1]} 22... Qc8 {[%clk 0:01:31.4]} 23. Bxb6 {[%clk 0:01:11]} 23...
Rxa6 {[%clk 0:01:31.4]} 24. Rxa6 {[%clk 0:01:05.8]} 24... Qxa6 {[%clk
0:01:32.3]} 25. Bd4 {[%clk 0:00:55]} 25... Rb8 {[%clk 0:01:23.1]} 26. Bxg7
{[%clk 0:00:53]} 26... Kxg7 {[%clk 0:01:24]} 27. b3 {[%clk 0:00:42.1]} 27...
Rxb5 {[%clk 0:01:20.2]} 28. Nxb5 {[%clk 0:00:37.2]} 28... Qxb5 {[%clk
0:01:21.1]} 29. bxc4 {[%clk 0:00:36.8]} 1-0

[Event "Early-Titled-Tuesday-Blitz-May-07-2024"]
[Site "Chess.com"]
[Date "2024.05.07"]
[Round "8"]
[White "Szparu"]
[Black "2Coaches1Profile"]
[Result "1-0"]
[WhiteElo "2923"]
[BlackElo "2578"]
[TimeControl "180+1"]
[EndTime "9:33:07 PDT"]
[Termination "Szparu won by checkmate"]

1. d4 {[%clk 0:03:00.9]} 1... Nf6 {[%clk 0:02:59.7]} 2. c4 {[%clk 0:02:58.1]}
2... c5 {[%clk 0:03:00.1]} 3. d5 {[%clk 0:02:57.9]} 3... e6 {[%clk 0:03:00.8]}
4. Nc3 {[%clk 0:02:58.3]} 4... exd5 {[%clk 0:03:01.7]} 5. cxd5 {[%clk
0:02:59.2]} 5... d6 {[%clk 0:03:02.2]} 6. e4 {[%clk 0:02:59.9]} 6... g6 {[%clk
0:03:02.8]} 7. f4 {[%clk 0:03:00.6]} 7... Bg7 {[%clk 0:03:03.2]} 8. Bb5+ {[%clk
0:03:01.3]} 8... Nfd7 {[%clk 0:03:02.3]} 9. Nf3 {[%clk 0:03:01.8]} 9... a6
{[%clk 0:02:59.4]} 10. Bd3 {[%clk 0:03:02.4]} 10... b5 {[%clk 0:03:00]} 11. O-O
{[%clk 0:03:03]} 11... O-O {[%clk 0:02:59.9]} 12. a3 {[%clk 0:03:03.7]} 12...
Re8 {[%clk 0:02:52.8]} 13. Kh1 {[%clk 0:03:03.6]} 13... Bb7 {[%clk 0:02:47.4]}
14. f5 {[%clk 0:02:48.9]} 14... Ne5 {[%clk 0:02:29.6]} 15. Nxe5 {[%clk
0:02:44.2]} 15... Bxe5 {[%clk 0:02:28.8]} 16. Qf3 {[%clk 0:02:41.3]} 16... Qc7
{[%clk 0:02:07.8]} 17. Bd2 {[%clk 0:02:37.9]} 17... c4 {[%clk 0:01:58.4]} 18.
Bc2 {[%clk 0:02:37.9]} 18... Qe7 {[%clk 0:01:42.2]} 19. Rf2 {[%clk 0:02:33.2]}
19... Nd7 {[%clk 0:01:41.4]} 20. Raf1 {[%clk 0:02:33.8]} 20... f6 {[%clk
0:01:37.7]} 21. h4 {[%clk 0:02:28.8]} 21... Kg7 {[%clk 0:01:32.4]} 22. Qg4
{[%clk 0:02:20.1]} 22... Qf7 {[%clk 0:01:03.1]} 23. Ne2 {[%clk 0:02:06.4]} 23...
Kh8 {[%clk 0:00:58.2]} 24. Nf4 {[%clk 0:01:56.2]} 24... Bxf4 {[%clk 0:00:57.2]}
25. Bxf4 {[%clk 0:01:55.6]} 25... Ne5 {[%clk 0:00:55.2]} 26. Bxe5 {[%clk
0:01:49.5]} 26... fxe5 {[%clk 0:00:55.5]} 27. fxg6 {[%clk 0:01:49.8]} 27... Qxg6
{[%clk 0:00:56.1]} 28. Qxg6 {[%clk 0:01:50.2]} 28... hxg6 {[%clk 0:00:56.7]} 29.
Rf6 {[%clk 0:01:51]} 29... Rad8 {[%clk 0:00:49.5]} 30. Rxg6 {[%clk 0:01:51.3]}
30... Re7 {[%clk 0:00:50.1]} 31. Rff6 {[%clk 0:01:51]} 31... Red7 {[%clk
0:00:49.4]} 32. Bd1 {[%clk 0:01:51.2]} 32... a5 {[%clk 0:00:44.9]} 33. h5 {[%clk
0:01:50.6]} 33... b4 {[%clk 0:00:41.9]} 34. axb4 {[%clk 0:01:28.5]} 34... axb4
{[%clk 0:00:39.7]} 35. Bg4 {[%clk 0:01:19.9]} 35... Rc7 {[%clk 0:00:39.5]} 36.
Rh6+ {[%clk 0:01:19.7]} 36... Kg8 {[%clk 0:00:35]} 37. Be6+ {[%clk 0:01:18.1]}
37... Kg7 {[%clk 0:00:30.5]} 38. Rfg6+ {[%clk 0:01:17.7]} 38... Kf8 {[%clk
0:00:30.6]} 39. Rg8+ {[%clk 0:01:16.2]} 39... Ke7 {[%clk 0:00:30.5]} 40. Rh7+
{[%clk 0:01:16.8]} 40... Kf6 {[%clk 0:00:30.9]} 41. Rg6# {[%clk 0:01:17.4]} 1-0

[Event "Early-Titled-Tuesday-Blitz-May-07-2024"]
[Site "Chess.com"]
[Date "2024.05.07"]
[Round "8"]
[White "IwkooO"]
[Black "Nadtkins"]
[Result "1-0"]
[WhiteElo "2703"]
[BlackElo "2537"]
[TimeControl "180+1"]
[EndTime "9:33:11 PDT"]
[Termination "IwkooO won on time"]

1. e4 {[%clk 0:02:59.5]} 1... e5 {[%clk 0:03:00]} 2. Nf3 {[%clk 0:02:59.6]} 2...
Nc6 {[%clk 0:03:00.7]} 3. g3 {[%clk 0:02:58.1]} 3... g6 {[%clk 0:02:50.7]} 4.
Bg2 {[%clk 0:02:58.2]} 4... Bg7 {[%clk 0:02:51.2]} 5. O-O {[%clk 0:02:58.8]}
5... Nf6 {[%clk 0:02:50]} 6. Re1 {[%clk 0:02:55]} 6... O-O {[%clk 0:02:49.6]} 7.
d3 {[%clk 0:02:55.1]} 7... h6 {[%clk 0:02:48.3]} 8. Nbd2 {[%clk 0:02:55.3]} 8...
Re8 {[%clk 0:02:43]} 9. b3 {[%clk 0:02:53.1]} 9... d5 {[%clk 0:02:32.6]} 10. Bb2
{[%clk 0:02:47.3]} 10... d4 {[%clk 0:02:31.4]} 11. Nc4 {[%clk 0:02:44.3]} 11...
b5 {[%clk 0:02:25.1]} 12. Ncd2 {[%clk 0:02:42.3]} 12... Be6 {[%clk 0:02:08.4]}
13. Nf1 {[%clk 0:02:32.5]} 13... Nd7 {[%clk 0:02:02.3]} 14. c3 {[%clk
0:02:32.3]} 14... dxc3 {[%clk 0:01:58.4]} 15. Bxc3 {[%clk 0:02:33.2]} 15... Nc5
{[%clk 0:01:49.3]} 16. Re3 {[%clk 0:02:32.6]} 16... Qd6 {[%clk 0:01:36.5]} 17.
Qc2 {[%clk 0:02:25.4]} 17... b4 {[%clk 0:01:02]} 18. Bb2 {[%clk 0:02:24.6]}
18... Rab8 {[%clk 0:01:02.5]} 19. h3 {[%clk 0:02:22]} 19... Rb5 {[%clk
0:00:56.8]} 20. Rd1 {[%clk 0:02:21]} 20... Rd8 {[%clk 0:00:55.6]} 21. Ba1 {[%clk
0:02:14.5]} 21... a5 {[%clk 0:00:54.4]} 22. N1d2 {[%clk 0:02:14.9]} 22... h5
{[%clk 0:00:45.1]} 23. Bf1 {[%clk 0:02:11.6]} 23... Bh6 {[%clk 0:00:44]} 24.
Ree1 {[%clk 0:02:10.8]} 24... Rb6 {[%clk 0:00:31.3]} 25. Nc4 {[%clk 0:02:07.9]}
25... Bxc4 {[%clk 0:00:30.6]} 26. dxc4 {[%clk 0:02:02.3]} 26... Qe7 {[%clk
0:00:23.1]} 27. Rd5 {[%clk 0:02:02.1]} 27... Ne6 {[%clk 0:00:21.2]} 28. Nxe5
{[%clk 0:01:53.3]} 28... Nxe5 {[%clk 0:00:20.5]} 29. Bxe5 {[%clk 0:01:52]} 29...
c6 {[%clk 0:00:20.9]} 30. Rdd1 {[%clk 0:01:50.1]} 30... Rb7 {[%clk 0:00:19.5]}
31. Qb2 {[%clk 0:01:48.4]} 31... Rbd7 {[%clk 0:00:18.9]} 32. Bf6 {[%clk
0:01:45.8]} 32... Rxd1 {[%clk 0:00:16.8]} 33. Rxd1 {[%clk 0:01:41.2]} 33... Qxf6
{[%clk 0:00:12.6]} 34. Qxf6 {[%clk 0:01:40.9]} 34... Rxd1 {[%clk 0:00:13.3]} 35.
c5 {[%clk 0:01:37.4]} 35... Bg7 {[%clk 0:00:12.4]} 36. Qf3 {[%clk 0:01:36.3]}
36... Bd4 {[%clk 0:00:11.9]} 37. Qxd1 {[%clk 0:01:36.3]} 1-0

[Event "Early-Titled-Tuesday-Blitz-May-07-2024"]
[Site "Chess.com"]
[Date "2024.05.07"]
[Round "8"]
[White "SharapovEvgeny"]
[Black "ChessQueen"]
[Result "1/2-1/2"]
[WhiteElo "2638"]
[BlackElo "2800"]
[TimeControl "180+1"]
[EndTime "9:33:14 PDT"]
[Termination "Game drawn by repetition"]

1. e4 {[%clk 0:03:00.1]} 1... c6 {[%clk 0:02:59.9]} 2. d4 {[%clk 0:03:00]} 2...
d5 {[%clk 0:03:00.8]} 3. Nc3 {[%clk 0:03:00.3]} 3... dxe4 {[%clk 0:03:01]} 4.
Nxe4 {[%clk 0:03:00.2]} 4... Nf6 {[%clk 0:03:01.9]} 5. Nxf6+ {[%clk 0:03:00]}
5... exf6 {[%clk 0:03:02.8]} 6. Bc4 {[%clk 0:02:59.3]} 6... Na6 {[%clk
0:02:50.7]} 7. Qe2+ {[%clk 0:02:58.1]} 7... Be7 {[%clk 0:02:50.4]} 8. Nf3 {[%clk
0:02:55.1]} 8... Nc7 {[%clk 0:02:48.2]} 9. O-O {[%clk 0:02:54.6]} 9... Be6
{[%clk 0:02:44.1]} 10. Bxe6 {[%clk 0:02:53.9]} 10... Nxe6 {[%clk 0:02:45]} 11.
c3 {[%clk 0:02:53.6]} 11... Qc7 {[%clk 0:02:44.7]} 12. a4 {[%clk 0:02:50]} 12...
h5 {[%clk 0:02:38.7]} 13. Rd1 {[%clk 0:02:45]} 13... O-O-O {[%clk 0:02:36.8]}
14. a5 {[%clk 0:02:40.6]} 14... h4 {[%clk 0:02:32]} 15. a6 {[%clk 0:02:38]}
15... b6 {[%clk 0:02:30.5]} 16. b4 {[%clk 0:02:34.8]} 16... g5 {[%clk
0:02:26.2]} 17. Qe4 {[%clk 0:02:21]} 17... Kb8 {[%clk 0:02:10.5]} 18. Be3 {[%clk
0:02:05.8]} 18... Rhg8 {[%clk 0:01:52.7]} 19. d5 {[%clk 0:02:01.7]} 19... cxd5
{[%clk 0:01:47.2]} 20. Rxd5 {[%clk 0:02:00.6]} 20... Rxd5 {[%clk 0:01:46.1]} 21.
Qxd5 {[%clk 0:02:00.4]} 21... h3 {[%clk 0:01:31.6]} 22. g3 {[%clk 0:01:57.5]}
22... g4 {[%clk 0:01:24.6]} 23. Nd4 {[%clk 0:01:57.3]} 23... Nxd4 {[%clk
0:01:21.7]} 24. cxd4 {[%clk 0:01:55.7]} 24... Rd8 {[%clk 0:01:16.3]} 25. Qb5
{[%clk 0:01:34.9]} 25... Qd7 {[%clk 0:01:08.1]} 26. Qxd7 {[%clk 0:01:29.1]}
26... Rxd7 {[%clk 0:01:09]} 27. b5 {[%clk 0:01:29.1]} 27... Bd6 {[%clk
0:01:04.6]} 28. Rc1 {[%clk 0:01:25.8]} 28... Rc7 {[%clk 0:01:00.2]} 29. Rxc7
{[%clk 0:01:25]} 29... Kxc7 {[%clk 0:01:01.1]} 30. Kf1 {[%clk 0:01:25.2]} 30...
Kd7 {[%clk 0:01:00.6]} 31. Ke2 {[%clk 0:01:25.3]} 31... Ke6 {[%clk 0:00:59.8]}
32. Kd3 {[%clk 0:01:24.1]} 32... Kd5 {[%clk 0:00:59.9]} 33. Bd2 {[%clk
0:01:08.5]} 33... f5 {[%clk 0:00:59.2]} 34. Be3 {[%clk 0:00:58]} 34... Bc7
{[%clk 0:00:42.4]} 35. Bd2 {[%clk 0:00:56.7]} 35... Bd6 {[%clk 0:00:42.3]} 36.
Be3 {[%clk 0:00:56.7]} 36... Bc7 {[%clk 0:00:37.5]} 37. Bd2 {[%clk 0:00:56.8]}
37... Bd6 {[%clk 0:00:36.6]} 1/2-1/2